[Event "Titled Tuesday Blitz June 28 Early 2022"]
[White "Thiel, Thomas"]
[Black "Hollan, Petr"]
[WhiteFideId "4615964"]
[BlackFideId "360945"]
[WhiteElo "2245"]
[BlackElo "2284"]
[Result "1/2-1/2"]
[Round "02"]
[TimeControl "180+1"]
[Date "2022.06.28"]
[WhiteClock "0:00:31"]
[BlackClock "0:00:28"]

1. e4 {[%clk 0:03:00]}  c5 {[%clk 0:02:59]} 2. Nc3 {[%clk 0:02:59]}  a6 {[%clk 0:02:58]} 3. Nge2 {[%clk 0:02:56]}  d6 {[%clk 0:02:57]} 4. g3 {[%clk 0:02:56]}  e6 {[%clk 0:02:53]} 5. Bg2 {[%clk 0:02:55]}  Nf6 {[%clk 0:02:53]} 6. O-O {[%clk 0:02:54]}  Be7 {[%clk 0:02:54]} 7. d4 {[%clk 0:02:52]}  cxd4 {[%clk 0:02:54]} 8. Nxd4 {[%clk 0:02:52]}  O-O {[%clk 0:02:55]} 9. Re1 {[%clk 0:02:51]}  Qc7 {[%clk 0:02:54]} 10. a4 {[%clk 0:02:47]}  Nc6 {[%clk 0:02:54]} 11. Nxc6 {[%clk 0:02:44]}  bxc6 {[%clk 0:02:53]} 12. a5 {[%clk 0:02:43]}  Rb8 {[%clk 0:02:48]} 13. b3 {[%clk 0:02:41]}  e5 {[%clk 0:02:46]} 14. Na4 {[%clk 0:02:39]}  Be6 {[%clk 0:02:41]} 15. Bd2 {[%clk 0:02:34]}  Nd7 {[%clk 0:02:39]} 16. c4 {[%clk 0:02:32]}  f5 {[%clk 0:02:34]} 17. Qc2 {[%clk 0:02:23]}  f4 {[%clk 0:02:33]} 18. b4 {[%clk 0:02:16]}  g5 {[%clk 0:02:24]} 19. Bf1 {[%clk 0:02:14]}  Qa7 {[%clk 0:02:10]} 20. Kg2 {[%clk 0:02:02]}  fxg3 {[%clk 0:02:07]} 21. Be3 {[%clk 0:01:58]}  Qc7 {[%clk 0:02:02]} 22. hxg3 {[%clk 0:01:57]}  Rxb4 {[%clk 0:02:01]} 23. Nb6 {[%clk 0:01:52]}  Nxb6 {[%clk 0:01:15]} 24. axb6 {[%clk 0:01:53]}  Rxb6 {[%clk 0:01:15]} 25. Bxb6 {[%clk 0:01:46]}  Qxb6 {[%clk 0:01:16]} 26. Reb1 {[%clk 0:01:44]}  Qd4 {[%clk 0:01:13]} 27. Rd1 {[%clk 0:01:39]}  Qc5 {[%clk 0:01:11]} 28. Rxa6 {[%clk 0:01:34]}  Bg4 {[%clk 0:01:08]} 29. Rd3 {[%clk 0:01:25]}  h5 {[%clk 0:00:53]} 30. f3 {[%clk 0:01:25]}  Be6 {[%clk 0:00:45]} 31. Qf2 {[%clk 0:01:21]}  Qxf2+ {[%clk 0:00:44]} 32. Kxf2 {[%clk 0:01:22]}  Bxc4 {[%clk 0:00:44]} 33. Rc3 {[%clk 0:01:20]}  Bxa6 {[%clk 0:00:41]} 34. Bxa6 {[%clk 0:01:19]}  d5 {[%clk 0:00:40]} 35. Rxc6 {[%clk 0:01:16]}  dxe4 {[%clk 0:00:40]} 36. Re6 {[%clk 0:01:02]}  Bc5+ {[%clk 0:00:36]} 37. Kf1 {[%clk 0:00:54]}  Rxf3+ {[%clk 0:00:29]} 38. Ke2 {[%clk 0:00:53]}  Rxg3 {[%clk 0:00:26]} 39. Rxe5 {[%clk 0:00:52]}  Bf8 {[%clk 0:00:26]} 40. Rxe4 {[%clk 0:00:51]}  h4 {[%clk 0:00:26]} 41. Bc4+ {[%clk 0:00:46]}  Kg7 {[%clk 0:00:27]} 42. Bd5 {[%clk 0:00:43]}  h3 {[%clk 0:00:27]} 43. Re3 {[%clk 0:00:42]}  Rxe3+ {[%clk 0:00:26]} 44. Kxe3 {[%clk 0:00:41]}  Kf6 {[%clk 0:00:27]} 45. Kf3 {[%clk 0:00:40]}  Bd6 {[%clk 0:00:27]} 46. Kf2 {[%clk 0:00:36]}  Ke5 {[%clk 0:00:25]} 47. Bb7 {[%clk 0:00:35]}  Kf4 {[%clk 0:00:25]} 48. Kg1 {[%clk 0:00:34]}  g4 {[%clk 0:00:26]} 49. Kh1 {[%clk 0:00:34]}  Ke3 {[%clk 0:00:27]} 50. Bc8 {[%clk 0:00:32]}  Kf3 {[%clk 0:00:26]} 51. Bxg4+ {[%clk 0:00:31]}  Kxg4 {[%clk 0:00:26]} 52. Kg1 {[%clk 0:00:31]}  Kg3 {[%clk 0:00:27]} 53. Kh1 {[%clk 0:00:31]}  h2 {[%clk 0:00:28]} 1/2-1/2


[Site "https://www.chess.com"]

[Event "Titled Tuesday Blitz June 28 Early 2022"]
[White "Urbina Perez, Juan Antonio"]
[Black "San, Thit Lwin"]
[WhiteFideId "2217368"]
[BlackFideId "13001272"]
[WhiteElo "2192"]
[BlackElo "2232"]
[Result "1-0"]
[Round "02"]
[TimeControl "180+1"]
[Date "2022.06.28"]
[WhiteClock "0:00:59"]
[BlackClock "0:00:46"]

1. e4 {[%clk 0:03:00]}  Nf6 {[%clk 0:03:00]} 2. e5 {[%clk 0:02:58]}  Nd5 {[%clk 0:03:01]} 3. d4 {[%clk 0:02:58]}  d6 {[%clk 0:03:01]} 4. Nf3 {[%clk 0:02:58]}  Bg4 {[%clk 0:03:02]} 5. exd6 {[%clk 0:02:57]}  cxd6 {[%clk 0:03:01]} 6. Be2 {[%clk 0:02:57]}  e6 {[%clk 0:03:01]} 7. O-O {[%clk 0:02:57]}  Be7 {[%clk 0:03:02]} 8. h3 {[%clk 0:02:56]}  Bh5 {[%clk 0:03:02]} 9. Nbd2 {[%clk 0:02:56]}  O-O {[%clk 0:03:00]} 10. Ne4 {[%clk 0:02:56]}  Bg6 {[%clk 0:02:57]} 11. Ng3 {[%clk 0:02:54]}  Nc6 {[%clk 0:02:57]} 12. c3 {[%clk 0:02:54]}  e5 {[%clk 0:02:49]} 13. dxe5 {[%clk 0:02:46]}  dxe5 {[%clk 0:02:49]} 14. Bd3 {[%clk 0:02:46]}  Nxc3 {[%clk 0:02:42]} 15. bxc3 {[%clk 0:02:43]}  Qxd3 {[%clk 0:02:42]} 16. Qxd3 {[%clk 0:02:42]}  Bxd3 {[%clk 0:02:42]} 17. Re1 {[%clk 0:02:40]}  f6 {[%clk 0:02:40]} 18. Be3 {[%clk 0:02:25]}  Rac8 {[%clk 0:02:39]} 19. Red1 {[%clk 0:02:25]}  Rfd8 {[%clk 0:02:38]} 20. Ne1 {[%clk 0:02:25]}  Bg6 {[%clk 0:02:25]} 21. h4 {[%clk 0:02:25]}  h5 {[%clk 0:02:15]} 22. Ne2 {[%clk 0:02:06]}  b6 {[%clk 0:02:09]} 23. f4 {[%clk 0:02:06]}  Kf7 {[%clk 0:02:04]} 24. Nf3 {[%clk 0:02:03]}  Rxd1+ {[%clk 0:01:51]} 25. Rxd1 {[%clk 0:02:02]}  Rd8 {[%clk 0:01:52]} 26. Rxd8 {[%clk 0:01:58]}  Bxd8 {[%clk 0:01:51]} 27. fxe5 {[%clk 0:01:58]}  Nxe5 {[%clk 0:01:50]} 28. Nfd4 {[%clk 0:01:59]}  Nc4 {[%clk 0:01:44]} 29. Bf4 {[%clk 0:01:53]}  Bb1 {[%clk 0:01:40]} 30. Nc6 {[%clk 0:01:48]}  Be7 {[%clk 0:01:34]} 31. Nxa7 {[%clk 0:01:47]}  Bxa2 {[%clk 0:01:33]} 32. Nc6 {[%clk 0:01:46]}  Bc5+ {[%clk 0:01:32]} 33. Kh2 {[%clk 0:01:47]}  Na5 {[%clk 0:01:29]} 34. Ncd4 {[%clk 0:01:43]}  Bd5 {[%clk 0:01:25]} 35. Bc7 {[%clk 0:01:42]}  Nc4 {[%clk 0:01:24]} 36. Nf4 {[%clk 0:01:39]}  Be4 {[%clk 0:01:04]} 37. Nxh5 {[%clk 0:01:34]}  Bxd4 {[%clk 0:01:03]} 38. cxd4 {[%clk 0:01:33]}  b5 {[%clk 0:01:04]} 39. Nf4 {[%clk 0:01:22]}  b4 {[%clk 0:00:59]} 40. d5 {[%clk 0:01:18]}  b3 {[%clk 0:00:59]} 41. d6 {[%clk 0:01:15]}  b2 {[%clk 0:00:51]} 42. d7 {[%clk 0:01:06]}  Ke7 {[%clk 0:00:51]} 43. d8=Q+ {[%clk 0:01:06]}  Kf7 {[%clk 0:00:49]} 44. Qd7+ {[%clk 0:01:03]}  Kg8 {[%clk 0:00:48]} 45. Qe8+ {[%clk 0:01:00]}  Kh7 {[%clk 0:00:48]} 46. Qxe4+ {[%clk 0:01:00]}  Kg8 {[%clk 0:00:46]} 47. Qxc4+ {[%clk 0:00:59]} 1-0


[Site "https://www.chess.com"]

[Event "Titled Tuesday Blitz June 28 Early 2022"]
[White "Vachier-Lagrave, Maxime"]
[Black "Ismagilov, Damir"]
[WhiteFideId "623539"]
[BlackFideId "34199982"]
[WhiteElo "2813"]
[BlackElo "2138"]
[Result "1-0"]
[Round "02"]
[TimeControl "180+1"]
[Date "2022.06.28"]
[WhiteClock "0:01:07"]
[BlackClock "0:00:09"]

1. d4 {[%clk 0:03:00]}  Nf6 {[%clk 0:02:59]} 2. c4 {[%clk 0:02:59]}  e6 {[%clk 0:02:59]} 3. Nc3 {[%clk 0:02:58]}  Bb4 {[%clk 0:03:00]} 4. e3 {[%clk 0:02:54]}  O-O {[%clk 0:03:00]} 5. Ne2 {[%clk 0:02:53]}  c6 {[%clk 0:02:58]} 6. a3 {[%clk 0:02:49]}  Ba5 {[%clk 0:02:58]} 7. c5 {[%clk 0:02:47]}  d5 {[%clk 0:02:53]} 8. cxd6 {[%clk 0:02:39]}  Qxd6 {[%clk 0:02:50]} 9. Bd2 {[%clk 0:02:39]}  e5 {[%clk 0:02:39]} 10. Qc2 {[%clk 0:02:36]}  exd4 {[%clk 0:02:25]} 11. Nxd4 {[%clk 0:02:36]}  Bb6 {[%clk 0:02:14]} 12. O-O-O {[%clk 0:02:23]}  Bxd4 {[%clk 0:02:08]} 13. exd4 {[%clk 0:02:24]}  Qxd4 {[%clk 0:01:46]} 14. Be3 {[%clk 0:02:23]}  Qg4 {[%clk 0:01:32]} 15. h3 {[%clk 0:02:19]}  Qe6 {[%clk 0:01:24]} 16. Bd3 {[%clk 0:02:17]}  Nbd7 {[%clk 0:01:12]} 17. Bf5 {[%clk 0:02:15]}  Qe7 {[%clk 0:01:07]} 18. Rhe1 {[%clk 0:02:15]}  Re8 {[%clk 0:00:53]} 19. g4 {[%clk 0:02:09]}  Nf8 {[%clk 0:00:38]} 20. Bd3 {[%clk 0:02:03]}  Be6 {[%clk 0:00:35]} 21. f4 {[%clk 0:01:52]}  Nd5 {[%clk 0:00:35]} 22. Bd2 {[%clk 0:01:46]}  Nxc3 {[%clk 0:00:28]} 23. Bxc3 {[%clk 0:01:47]}  Qc7 {[%clk 0:00:27]} 24. Be5 {[%clk 0:01:38]}  Qb6 {[%clk 0:00:27]} 25. Bd4 {[%clk 0:01:32]}  Bb3 {[%clk 0:00:20]} 26. Rxe8 {[%clk 0:01:12]}  Bxc2 {[%clk 0:00:16]} 27. Rxa8 {[%clk 0:01:11]}  Qb3 {[%clk 0:00:11]} 28. Bxc2 {[%clk 0:01:11]}  Qc4 {[%clk 0:00:11]} 29. Kb1 {[%clk 0:01:07]}  f6 {[%clk 0:00:09]} 30. Rd3 {[%clk 0:01:07]} 1-0


[Site "https://www.chess.com"]

[Event "Titled Tuesday Blitz June 28 Early 2022"]
[White "Vainio, Ville"]
[Black "Dubov, Daniil"]
[WhiteFideId "507270"]
[BlackFideId "24126055"]
[WhiteElo "2225"]
[BlackElo "2791"]
[Result "0-1"]
[Round "02"]
[TimeControl "180+1"]
[Date "2022.06.28"]
[WhiteClock "0:00:04"]
[BlackClock "0:01:25"]

1. e4 {[%clk 0:03:00]}  c6 {[%clk 0:02:59]} 2. d4 {[%clk 0:03:00]}  d5 {[%clk 0:03:00]} 3. Nc3 {[%clk 0:03:00]}  dxe4 {[%clk 0:03:00]} 4. Nxe4 {[%clk 0:03:01]}  Nf6 {[%clk 0:03:01]} 5. Nxf6+ {[%clk 0:03:02]}  exf6 {[%clk 0:03:02]} 6. c3 {[%clk 0:03:02]}  Bd6 {[%clk 0:03:02]} 7. Bd3 {[%clk 0:03:02]}  O-O {[%clk 0:03:02]} 8. Qc2 {[%clk 0:03:03]}  Re8+ {[%clk 0:03:02]} 9. Ne2 {[%clk 0:03:03]}  h6 {[%clk 0:03:03]} 10. O-O {[%clk 0:03:02]}  Nd7 {[%clk 0:03:03]} 11. Bd2 {[%clk 0:03:03]}  Nb6 {[%clk 0:03:02]} 12. c4 {[%clk 0:03:02]}  Bf8 {[%clk 0:03:00]} 13. Rad1 {[%clk 0:02:43]}  Bg4 {[%clk 0:02:57]} 14. f3 {[%clk 0:02:36]}  Be6 {[%clk 0:02:55]} 15. b3 {[%clk 0:02:24]}  Qd7 {[%clk 0:02:54]} 16. Bc3 {[%clk 0:02:18]}  Rad8 {[%clk 0:02:46]} 17. h3 {[%clk 0:02:10]}  Nc8 {[%clk 0:02:37]} 18. f4 {[%clk 0:02:04]}  Ne7 {[%clk 0:02:31]} 19. Ng3 {[%clk 0:02:03]}  Qc7 {[%clk 0:02:27]} 20. Rf3 {[%clk 0:01:53]}  b5 {[%clk 0:02:24]} 21. f5 {[%clk 0:01:32]}  Bc8 {[%clk 0:02:21]} 22. Bd2 {[%clk 0:01:32]}  bxc4 {[%clk 0:02:19]} 23. bxc4 {[%clk 0:01:33]}  Rxd4 {[%clk 0:02:18]} 24. Be3 {[%clk 0:01:20]}  Rdd8 {[%clk 0:02:16]} 25. Qa4 {[%clk 0:01:09]}  c5 {[%clk 0:02:07]} 26. Bf4 {[%clk 0:01:00]}  Qc6 {[%clk 0:02:07]} 27. Qc2 {[%clk 0:00:52]}  Bb7 {[%clk 0:02:01]} 28. Be4 {[%clk 0:00:48]}  Rxd1+ {[%clk 0:01:59]} 29. Qxd1 {[%clk 0:00:48]}  Qc8 {[%clk 0:01:59]} 30. Bxb7 {[%clk 0:00:37]}  Qxb7 {[%clk 0:02:00]} 31. Rd3 {[%clk 0:00:36]}  Nc6 {[%clk 0:01:51]} 32. Rd7 {[%clk 0:00:33]}  Qa6 {[%clk 0:01:52]} 33. Qd5 {[%clk 0:00:32]}  Re7 {[%clk 0:01:53]} 34. Rd6 {[%clk 0:00:28]}  Re1+ {[%clk 0:01:51]} 35. Kh2 {[%clk 0:00:26]}  Bxd6 {[%clk 0:01:52]} 36. Qxd6 {[%clk 0:00:20]}  Qb7 {[%clk 0:01:49]} 37. Nh5 {[%clk 0:00:14]}  Re2 {[%clk 0:01:32]} 38. Nxf6+ {[%clk 0:00:04]}  gxf6 {[%clk 0:01:27]} 39. Qxf6 {[%clk 0:00:05]}  Nd4 {[%clk 0:01:25]} 40. Qd8+ {[%clk 0:00:04]}  Kh7 {[%clk 0:01:25]} 0-1


[Site "https://www.chess.com"]

[Event "Titled Tuesday Blitz June 28 Early 2022"]
[White "Van Foreest, Jorden"]
[Black "Navarrete Mendez, Gonzalo Alberto"]
[WhiteFideId "1039784"]
[BlackFideId "5106850"]
[WhiteElo "2609"]
[BlackElo "2261"]
[Result "1-0"]
[Round "02"]
[TimeControl "180+1"]
[Date "2022.06.28"]
[WhiteClock "0:01:04"]
[BlackClock "0:00:03"]

1. Nf3 {[%clk 0:01:45]}  d5 {[%clk 0:02:59]} 2. e3 {[%clk 0:01:45]}  c5 {[%clk 0:02:58]} 3. c4 {[%clk 0:01:46]}  e6 {[%clk 0:02:55]} 4. d4 {[%clk 0:01:45]}  Nf6 {[%clk 0:02:54]} 5. a3 {[%clk 0:01:44]}  dxc4 {[%clk 0:02:28]} 6. Bxc4 {[%clk 0:01:42]}  a6 {[%clk 0:02:28]} 7. O-O {[%clk 0:01:41]}  b5 {[%clk 0:02:26]} 8. Be2 {[%clk 0:01:41]}  Bb7 {[%clk 0:02:23]} 9. dxc5 {[%clk 0:01:35]}  Bxc5 {[%clk 0:02:14]} 10. Qxd8+ {[%clk 0:01:34]}  Kxd8 {[%clk 0:02:15]} 11. b4 {[%clk 0:01:33]}  Bd6 {[%clk 0:01:56]} 12. Bb2 {[%clk 0:01:31]}  Ke7 {[%clk 0:01:56]} 13. Nbd2 {[%clk 0:01:28]}  Rd8 {[%clk 0:01:49]} 14. Nb3 {[%clk 0:01:26]}  Nbd7 {[%clk 0:01:45]} 15. Na5 {[%clk 0:01:26]}  Bd5 {[%clk 0:01:40]} 16. Nd4 {[%clk 0:01:26]}  Rac8 {[%clk 0:01:35]} 17. Rac1 {[%clk 0:01:26]}  Nb6 {[%clk 0:01:23]} 18. Ndc6+ {[%clk 0:01:22]}  Ke8 {[%clk 0:01:06]} 19. Nxd8 {[%clk 0:01:21]}  Rxd8 {[%clk 0:01:07]} 20. Rfd1 {[%clk 0:01:20]}  Na4 {[%clk 0:00:53]} 21. Ba1 {[%clk 0:01:17]}  Nb6 {[%clk 0:00:30]} 22. f3 {[%clk 0:01:15]}  Bb8 {[%clk 0:00:21]} 23. e4 {[%clk 0:01:13]}  Ba8 {[%clk 0:00:19]} 24. Rxd8+ {[%clk 0:01:14]}  Kxd8 {[%clk 0:00:19]} 25. Nc6+ {[%clk 0:01:12]}  Bxc6 {[%clk 0:00:19]} 26. Rxc6 {[%clk 0:01:13]}  Bc7 {[%clk 0:00:17]} 27. Bd4 {[%clk 0:01:11]}  Nfd7 {[%clk 0:00:12]} 28. Bxg7 {[%clk 0:01:11]}  Kc8 {[%clk 0:00:07]} 29. Rc1 {[%clk 0:01:04]}  Kb7 {[%clk 0:00:07]} 30. Bd4 {[%clk 0:01:04]}  Bf4 {[%clk 0:00:07]} 31. Rd1 {[%clk 0:01:04]}  Ne5 {[%clk 0:00:05]} 32. g3 {[%clk 0:01:04]}  Nc6 {[%clk 0:00:03]} 33. gxf4 {[%clk 0:01:04]} 1-0


[Site "https://www.chess.com"]

[Event "Titled Tuesday Blitz June 28 Early 2022"]
[White "Vidruska, Renate"]
[Black "Garcia Cuenca, Victor"]
[WhiteFideId "11601841"]
[BlackFideId "2250829"]
[WhiteElo "1873"]
[BlackElo "2317"]
[Result "0-1"]
[Round "02"]
[TimeControl "180+1"]
[Date "2022.06.28"]
[WhiteClock "0:00:08"]
[BlackClock "0:01:17"]

1. e4 {[%clk 0:00:14]}  c6 {[%clk 0:02:53]} 2. d4 {[%clk 0:00:14]}  d5 {[%clk 0:02:54]} 3. Nd2 {[%clk 0:00:15]}  dxe4 {[%clk 0:02:53]} 4. Nxe4 {[%clk 0:00:16]}  g6 {[%clk 0:02:52]} 5. Nf3 {[%clk 0:00:15]}  Bg7 {[%clk 0:02:53]} 6. Be3 {[%clk 0:00:15]}  Nh6 {[%clk 0:02:51]} 7. Ng3 {[%clk 0:00:16]}  Ng4 {[%clk 0:02:50]} 8. Qd2 {[%clk 0:00:16]}  Nxe3 {[%clk 0:02:49]} 9. fxe3 {[%clk 0:00:17]}  Nd7 {[%clk 0:02:46]} 10. Bd3 {[%clk 0:00:17]}  e5 {[%clk 0:02:44]} 11. O-O {[%clk 0:00:16]}  O-O {[%clk 0:02:42]} 12. Nxe5 {[%clk 0:00:16]}  Nxe5 {[%clk 0:02:41]} 13. dxe5 {[%clk 0:00:17]}  Bxe5 {[%clk 0:02:41]} 14. c3 {[%clk 0:00:18]}  Qe7 {[%clk 0:02:26]} 15. Rae1 {[%clk 0:00:17]}  Be6 {[%clk 0:02:25]} 16. Qf2 {[%clk 0:00:17]}  Bxa2 {[%clk 0:02:20]} 17. Ne4 {[%clk 0:00:16]}  f5 {[%clk 0:02:18]} 18. Nd2 {[%clk 0:00:16]}  Rad8 {[%clk 0:02:12]} 19. Bc4+ {[%clk 0:00:16]}  Bxc4 {[%clk 0:02:12]} 20. Nxc4 {[%clk 0:00:17]}  Bc7 {[%clk 0:02:13]} 21. g3 {[%clk 0:00:16]}  Qe4 {[%clk 0:02:06]} 22. Nd2 {[%clk 0:00:14]}  Qd3 {[%clk 0:02:06]} 23. Nf3 {[%clk 0:00:15]}  Rfe8 {[%clk 0:02:01]} 24. Qe2 {[%clk 0:00:15]}  Bb6 {[%clk 0:01:51]} 25. Kf2 {[%clk 0:00:13]}  Rxe3 {[%clk 0:01:47]} 26. Qxd3 {[%clk 0:00:13]}  Rexd3+ {[%clk 0:01:42]} 27. Ke2 {[%clk 0:00:12]}  Re3+ {[%clk 0:01:40]} 28. Kf2 {[%clk 0:00:13]}  Rxc3+ {[%clk 0:01:40]} 29. Kg2 {[%clk 0:00:12]}  Rc2+ {[%clk 0:01:40]} 30. Kh3 {[%clk 0:00:13]}  Rd7 {[%clk 0:01:32]} 31. Re8+ {[%clk 0:00:13]}  Kg7 {[%clk 0:01:31]} 32. Ng5 {[%clk 0:00:11]}  h6 {[%clk 0:01:25]} 33. Ne6+ {[%clk 0:00:11]}  Kf7 {[%clk 0:01:23]} 34. Re1 {[%clk 0:00:11]}  Rdd2 {[%clk 0:01:18]} 35. Nf4 {[%clk 0:00:08]}  Rxh2# {[%clk 0:01:17]} 0-1


[Site "https://www.chess.com"]

[Event "Titled Tuesday Blitz June 28 Early 2022"]
[White "Wartiovaara, Oliver"]
[Black "Przybylski, Wojciech"]
[WhiteFideId "513024"]
[BlackFideId "1117599"]
[WhiteElo "1971"]
[BlackElo "2133"]
[Result "0-1"]
[Round "02"]
[TimeControl "180+1"]
[Date "2022.06.28"]
[WhiteClock "0:00:21"]
[BlackClock "0:01:38"]

1. e4 {[%clk 0:03:00]}  e5 {[%clk 0:02:52]} 2. f4 {[%clk 0:03:00]}  exf4 {[%clk 0:02:51]} 3. Nf3 {[%clk 0:02:56]}  g5 {[%clk 0:02:51]} 4. h4 {[%clk 0:02:50]}  g4 {[%clk 0:02:47]} 5. Ne5 {[%clk 0:02:50]}  d6 {[%clk 0:02:46]} 6. Nxg4 {[%clk 0:02:34]}  Nf6 {[%clk 0:02:45]} 7. Nxf6+ {[%clk 0:02:22]}  Qxf6 {[%clk 0:02:45]} 8. Nc3 {[%clk 0:02:07]}  Rg8 {[%clk 0:02:33]} 9. Qf3 {[%clk 0:01:55]}  c6 {[%clk 0:02:17]} 10. d3 {[%clk 0:01:46]}  Bh6 {[%clk 0:02:14]} 11. Qf2 {[%clk 0:01:26]}  Nd7 {[%clk 0:02:02]} 12. Be2 {[%clk 0:01:10]}  Ne5 {[%clk 0:02:00]} 13. O-O {[%clk 0:01:05]}  Bh3 {[%clk 0:01:54]} 14. Bxf4 {[%clk 0:00:40]}  Rxg2+ {[%clk 0:01:46]} 15. Qxg2 {[%clk 0:00:40]}  Bxg2 {[%clk 0:01:46]} 16. Bxe5 {[%clk 0:00:36]}  Qxe5 {[%clk 0:01:43]} 17. Kxg2 {[%clk 0:00:36]}  Ke7 {[%clk 0:01:43]} 18. Bf3 {[%clk 0:00:22]}  Rg8+ {[%clk 0:01:40]} 19. Kf2 {[%clk 0:00:21]}  Qh2+ {[%clk 0:01:38]} 0-1


[Site "https://www.chess.com"]

[Event "Titled Tuesday Blitz June 28 Early 2022"]
[White "Weishaeutel, Moritz"]
[Black "Gaisinsky, Adam"]
[WhiteFideId "12967300"]
[BlackFideId "2620561"]
[WhiteElo "2002"]
[BlackElo "1965"]
[Result "0-1"]
[Round "02"]
[TimeControl "180+1"]
[Date "2022.06.28"]
[WhiteClock "0:00:18"]
[BlackClock "0:00:10"]

1. e4 {[%clk 0:03:00]}  e5 {[%clk 0:02:59]} 2. Nf3 {[%clk 0:03:00]}  Nc6 {[%clk 0:02:59]} 3. Nc3 {[%clk 0:03:00]}  Nf6 {[%clk 0:03:00]} 4. a3 {[%clk 0:03:00]}  d5 {[%clk 0:02:57]} 5. Bb5 {[%clk 0:03:00]}  Bg4 {[%clk 0:02:40]} 6. exd5 {[%clk 0:02:47]}  Nxd5 {[%clk 0:02:40]} 7. h3 {[%clk 0:02:48]}  Nxc3 {[%clk 0:02:35]} 8. bxc3 {[%clk 0:02:46]}  Bh5 {[%clk 0:01:48]} 9. g4 {[%clk 0:02:18]}  Bg6 {[%clk 0:01:48]} 10. Qe2 {[%clk 0:02:19]}  e4 {[%clk 0:01:34]} 11. Nd4 {[%clk 0:02:00]}  Qd5 {[%clk 0:01:29]} 12. O-O {[%clk 0:01:40]}  Bc5 {[%clk 0:01:05]} 13. Nxc6 {[%clk 0:01:29]}  bxc6 {[%clk 0:01:01]} 14. Ba4 {[%clk 0:01:30]}  O-O {[%clk 0:00:55]} 15. Qa6 {[%clk 0:01:24]}  Qe5 {[%clk 0:00:43]} 16. Kg2 {[%clk 0:01:20]}  Bd6 {[%clk 0:00:34]} 17. Rh1 {[%clk 0:01:14]}  e3 {[%clk 0:00:21]} 18. dxe3 {[%clk 0:01:07]}  Be4+ {[%clk 0:00:20]} 19. Kf1 {[%clk 0:00:57]}  Bxh1 {[%clk 0:00:19]} 20. f4 {[%clk 0:00:46]}  Qe4 {[%clk 0:00:17]} 21. Ke1 {[%clk 0:00:44]}  Rad8 {[%clk 0:00:15]} 22. Qd3 {[%clk 0:00:40]}  Qxd3 {[%clk 0:00:12]} 23. cxd3 {[%clk 0:00:40]}  Bg2 {[%clk 0:00:12]} 24. Kf2 {[%clk 0:00:41]}  Bxh3 {[%clk 0:00:12]} 25. Kg3 {[%clk 0:00:41]}  Bf1 {[%clk 0:00:13]} 26. Bc2 {[%clk 0:00:41]}  Bc5 {[%clk 0:00:11]} 27. d4 {[%clk 0:00:42]}  Bb6 {[%clk 0:00:11]} 28. Bd2 {[%clk 0:00:43]}  Bc4 {[%clk 0:00:11]} 29. a4 {[%clk 0:00:42]}  a5 {[%clk 0:00:11]} 30. Rh1 {[%clk 0:00:41]}  g6 {[%clk 0:00:10]} 31. f5 {[%clk 0:00:40]}  c5 {[%clk 0:00:09]} 32. Bc1 {[%clk 0:00:37]}  Rfe8 {[%clk 0:00:08]} 33. e4 {[%clk 0:00:36]}  cxd4 {[%clk 0:00:08]} 34. cxd4 {[%clk 0:00:31]}  Bxd4 {[%clk 0:00:09]} 35. Bg5 {[%clk 0:00:30]}  f6 {[%clk 0:00:08]} 36. Bc1 {[%clk 0:00:29]}  g5 {[%clk 0:00:08]} 37. Kf3 {[%clk 0:00:28]}  Be5 {[%clk 0:00:08]} 38. Be3 {[%clk 0:00:24]}  Kg7 {[%clk 0:00:07]} 39. Rc1 {[%clk 0:00:22]}  Rb8 {[%clk 0:00:06]} 40. Bd1 {[%clk 0:00:23]}  Rb4 {[%clk 0:00:06]} 41. Bd2 {[%clk 0:00:21]}  Bd3 {[%clk 0:00:04]} 42. Bxb4 {[%clk 0:00:21]}  axb4 {[%clk 0:00:05]} 43. Ke3 {[%clk 0:00:20]}  Ba6 {[%clk 0:00:05]} 44. Rc6 {[%clk 0:00:19]}  Bb7 {[%clk 0:00:05]} 45. Rc4 {[%clk 0:00:19]}  Bc3 {[%clk 0:00:04]} 46. Bc2 {[%clk 0:00:17]}  Re7 {[%clk 0:00:04]} 47. Bb3 {[%clk 0:00:16]}  Ba6 {[%clk 0:00:04]} 48. Rc6 {[%clk 0:00:16]}  Bb7 {[%clk 0:00:04]} 49. Rc4 {[%clk 0:00:16]}  Kf8 {[%clk 0:00:04]} 50. Kd3 {[%clk 0:00:16]}  Rd7+ {[%clk 0:00:04]} 51. Ke3 {[%clk 0:00:15]}  Ke7 {[%clk 0:00:05]} 52. a5 {[%clk 0:00:14]}  Ba6 {[%clk 0:00:04]} 53. Rc6 {[%clk 0:00:14]}  Bb5 {[%clk 0:00:05]} 54. Rc5 {[%clk 0:00:14]}  Bd4+ {[%clk 0:00:05]} 55. Kf3 {[%clk 0:00:13]}  Bxc5 {[%clk 0:00:06]} 56. Ba4 {[%clk 0:00:12]}  Bxa4 {[%clk 0:00:06]} 57. a6 {[%clk 0:00:13]}  Bb5 {[%clk 0:00:06]} 58. a7 {[%clk 0:00:13]}  Bxa7 {[%clk 0:00:07]} 59. e5 {[%clk 0:00:14]}  fxe5 {[%clk 0:00:07]} 60. f6+ {[%clk 0:00:15]}  Kxf6 {[%clk 0:00:08]} 61. Ke4 {[%clk 0:00:16]}  Rd4+ {[%clk 0:00:08]} 62. Kf3 {[%clk 0:00:14]}  Rf4+ {[%clk 0:00:08]} 63. Kg3 {[%clk 0:00:15]}  Bf2+ {[%clk 0:00:08]} 64. Kh3 {[%clk 0:00:16]}  Bf1+ {[%clk 0:00:07]} 65. Kh2 {[%clk 0:00:16]}  b3 {[%clk 0:00:08]} 66. Kh1 {[%clk 0:00:16]}  b2 {[%clk 0:00:08]} 67. Kh2 {[%clk 0:00:17]}  b1=Q {[%clk 0:00:08]} 68. Kh1 {[%clk 0:00:18]}  Qe4+ {[%clk 0:00:09]} 69. Kh2 {[%clk 0:00:18]}  Qg2# {[%clk 0:00:10]} 0-1


[Site "https://www.chess.com"]

[Event "Titled Tuesday Blitz June 28 Early 2022"]
[White "Winkels, Marcel"]
[Black "Rom, Jasper"]
[WhiteFideId "1003887"]
[BlackFideId "2023733"]
[WhiteElo "1900"]
[BlackElo "2233"]
[Result "0-1"]
[Round "02"]
[TimeControl "180+1"]
[Date "2022.06.28"]
[WhiteClock "0:00:09"]
[BlackClock "0:00:53"]

1. e4 {[%clk 0:03:00]}  e6 {[%clk 0:02:59]} 2. d4 {[%clk 0:02:59]}  d5 {[%clk 0:02:59]} 3. Nc3 {[%clk 0:02:59]}  Nf6 {[%clk 0:02:58]} 4. Bg5 {[%clk 0:02:57]}  Bb4 {[%clk 0:02:57]} 5. e5 {[%clk 0:02:56]}  h6 {[%clk 0:02:57]} 6. Be3 {[%clk 0:02:53]}  Ne4 {[%clk 0:02:56]} 7. Qd3 {[%clk 0:02:48]}  c5 {[%clk 0:02:49]} 8. dxc5 {[%clk 0:02:40]}  Qa5 {[%clk 0:02:49]} 9. Ne2 {[%clk 0:02:38]}  Nc6 {[%clk 0:02:46]} 10. a3 {[%clk 0:02:31]}  Nxe5 {[%clk 0:02:45]} 11. Qd4 {[%clk 0:02:23]}  Nc6 {[%clk 0:02:19]} 12. Qxg7 {[%clk 0:02:13]}  Rf8 {[%clk 0:02:17]} 13. Bxh6 {[%clk 0:01:46]}  Bxc5 {[%clk 0:02:14]} 14. O-O-O {[%clk 0:01:34]}  Nxf2 {[%clk 0:02:04]} 15. Nf4 {[%clk 0:00:58]}  Nxd1 {[%clk 0:01:29]} 16. Kxd1 {[%clk 0:00:54]}  Bd7 {[%clk 0:01:20]} 17. b4 {[%clk 0:00:45]}  Nxb4 {[%clk 0:01:11]} 18. axb4 {[%clk 0:00:44]}  Qxb4 {[%clk 0:01:10]} 19. Bd3 {[%clk 0:00:39]}  O-O-O {[%clk 0:01:06]} 20. Ke2 {[%clk 0:00:30]}  Bd4 {[%clk 0:01:00]} 21. Na2 {[%clk 0:00:24]}  Bxg7 {[%clk 0:00:57]} 22. Nxb4 {[%clk 0:00:22]}  Bxh6 {[%clk 0:00:57]} 23. Nh3 {[%clk 0:00:18]}  e5 {[%clk 0:00:54]} 24. Nxd5 {[%clk 0:00:10]}  Bg4+ {[%clk 0:00:53]} 25. Kf2 {[%clk 0:00:09]}  Rxd5 {[%clk 0:00:53]} 0-1


[Site "https://www.chess.com"]